bitfinex/quotes_BTCUSD_20241003
["timestamp","ask_amount","ask_price","bid_price","bid_amount"]
[1727919978449,0.4818197,61107.0,61106.0,0.000819]
[1727919978937,1.4818197,61107.0,61106.0,0.000819]
[1727919979423,1.30943696,61107.0,61106.0,0.000819]
[1727919980337,1.4748197,61107.0,61106.0,0.000819]
[1727919980802,1.4778197,61107.0,61106.0,0.001819]
[1727919981037,1.4708197,61107.0,61106.0,0.000819]
[1727919981486,1.4748197,61107.0,61106.0,0.000819]
[1727919982443,1.4778197,61107.0,61106.0,0.001819]
[1727919982675,1.4708197,61107.0,61106.0,0.000819]
[1727919982911,1.4708197,61107.0,61106.0,0.001819]
[1727919983136,1.4778197,61107.0,61106.0,0.001819]
[1727919983585,1.5008197,61107.0,61106.0,0.001819]
[1727919983842,1.5048197,61107.0,61106.0,0.001819]
[1727919984326,1.47915807,61107.0,61106.0,0.001819]
[1727919985208,1.64234478,61107.0,61106.0,0.001819]
[1727919985642,1.47915807,61107.0,61106.0,0.001819]
[1727919987429,1.50482259,61107.0,61106.0,0.001819]
[1727919988125,1.50482259,61107.0,61089.0,0.0762]
[1727919988126,0.43606474,61094.0,61092.0,0.24491195]
[1727919988347,0.45906474,61094.0,61092.0,0.24491195]
[1727919988559,0.57675868,61094.0,61079.0,0.24491195]
[1727919990117,0.59075868,61094.0,61079.0,0.24491195]
[1727919990332,0.57675868,61094.0,61079.0,0.24491195]
[1727919990548,0.46538281,61094.0,61079.0,0.24491195]
[1727919990790,0.45638281,61094.0,61089.0,0.0804]
[1727919991002,0.44238281,61094.0,61089.0,0.0804]
[1727919991229,0.45538281,61094.0,61089.0,0.0804]
[1727919991668,0.46805149,61094.0,61089.0,0.0804]
[1727919991882,0.48005149,61094.0,61089.0,0.0804]
[1727919992116,0.48005149,61094.0,61083.0,0.0752]
[1727919992338,0.49405149,61094.0,61083.0,0.0752]
[1727919992557,0.48005149,61094.0,61083.0,0.0752]
[1727919993197,0.46805149,61094.0,61083.0,0.0752]
[1727919993438,0.47705149,61094.0,61083.0,0.0752]
[1727919993675,0.47605149,61094.0,61083.0,0.0752]
[1727919994106,0.47905149,61094.0,61083.0,0.0752]
[1727919994321,0.48705149,61094.0,61083.0,0.0752]
[1727919994830,0.48705149,61094.0,61072.0,0.24491195]
[1727919994831,0.64896134,61094.0,61072.0,0.24491195]
[1727919995050,0.57617934,61094.0,61081.0,0.24511195]
[1727919995266,0.33609674,61082.0,61081.0,0.24511195]
[1727919995697,0.33609674,61082.0,61081.0,0.0002]
[1727919995911,0.34239014,61082.0,61081.0,0.0002]
[1727919996150,0.36806225,61082.0,61081.0,0.0002]
[1727919996587,0.37606225,61082.0,61081.0,0.0002]
[1727919997295,0.47606225,61082.0,61081.0,0.0002]
[1727919997510,0.44739014,61082.0,61081.0,0.0002]
[1727919997945,0.44239014,61082.0,61081.0,0.0002]
[1727919998160,0.44339014,61082.0,61081.0,0.0002]
[1727919998611,0.44239014,61082.0,61081.0,0.0002]
[1727919998827,0.44739014,61082.0,61081.0,0.0002]
[1727919999066,0.44539014,61082.0,61081.0,0.0002]
[1727919999279,0.2790074,61082.0,61081.0,0.001019]
[1727920000376,0.45139014,61082.0,61081.0,0.001019]
[1727920000817,0.47706373,61082.0,61081.0,0.001019]
[1727920001311,0.66696373,61082.0,61081.0,0.001019]
[1727920001529,0.66396373,61082.0,61081.0,0.001019]
[1727920001961,0.67296373,61082.0,61081.0,0.001019]
[1727920002187,0.66696373,61082.0,61081.0,0.001019]
[1727920002424,0.66696373,61082.0,61069.0,0.0162645]
[1727920002425,0.286746,61070.0,61069.0,0.0162645]
[1727920002866,0.29298461,61070.0,61069.0,0.0162645]
[1727920003293,0.31866307,61070.0,61069.0,0.0162645]
[1727920003508,0.43326275,61070.0,61069.0,0.0162645]
[1727920003741,0.43426275,61070.0,61069.0,0.0162645]
[1727920004436,0.40858429,61070.0,61069.0,0.0162645]
[1727920004890,0.40758429,61070.0,61069.0,0.0162645]
[1727920005108,0.43926327,61070.0,61069.0,0.0162645]
[1727920005329,0.44826327,61070.0,61069.0,0.0162645]
[1727920005985,0.43926327,61070.0,61069.0,0.0162645]
[1727920006242,0.44826327,61070.0,61069.0,0.0162645]
[1727920007632,0.42258429,61070.0,61069.0,0.0162645]
[1727920008708,0.42160956,61070.0,61069.0,0.0162645]
[1727920008919,0.30700988,61070.0,61069.0,0.0162645]
[1727920009142,0.28400988,61070.0,61069.0,0.0162645]
[1727920009572,0.30700988,61070.0,61069.0,0.0162645]
[1727920010505,0.33268994,61070.0,61069.0,0.0162645]
[1727920010722,0.4733835,61070.0,61069.0,0.0162645]
[1727920012446,0.5638835,61070.0,61069.0,0.0170835]
[1727920014025,0.5578835,61070.0,61069.0,0.0170835]
[1727920014278,0.5698835,61070.0,61069.0,0.0170835]
[1727920014536,0.5608835,61070.0,61069.0,0.0170835]
[1727920014803,0.5748835,61070.0,61069.0,0.0170835]
[1727920015316,0.4843835,61070.0,61069.0,0.0170835]
[1727920015842,0.32068994,61070.0,61069.0,0.0170835]
[1727920016125,0.34368994,61070.0,61069.0,0.0170835]
[1727920016893,0.33168994,61070.0,61069.0,0.0170835]
[1727920017132,0.34068994,61070.0,61069.0,0.0170835]
[1727920017654,0.31768994,61070.0,61069.0,0.0996835]
[1727920017916,0.29468994,61070.0,61069.0,0.0996835]
[1727920018175,0.29468994,61070.0,61069.0,0.1923835]
[1727920018176,0.18100988,61070.0,61069.0,0.1923835]
[1727920018403,0.19300988,61070.0,61069.0,0.1923835]
[1727920018621,0.18100988,61070.0,61069.0,0.1923835]
[1727920019083,0.18200988,61070.0,61069.0,0.1923835]
[1727920019321,0.18100988,61070.0,61069.0,0.1923835]
[1727920019573,0.18500988,61070.0,61069.0,0.21162185]
[1727920020286,0.17300988,61070.0,61069.0,0.21162185]
[1727920020544,0.17400988,61070.0,61069.0,0.21162185]
[1727920020762,0.17400988,61070.0,61069.0,0.1923835]
[1727920020981,0.16900988,61070.0,61069.0,0.1923835]
[1727920021463,0.19468543,61070.0,61069.0,0.1923835]
[1727920021979,0.19566016,61070.0,61069.0,0.1923835]
[1727920022194,0.03191416,61070.0,61069.0,0.1943835]
[1727920022425,0.03191416,61070.0,61069.0,0.26622635]
[1727920022673,0.19566016,61070.0,61069.0,0.1943835]
[1727920022890,0.03191416,61070.0,61069.0,0.1943835]
[1727920023109,0.19566016,61070.0,61069.0,0.2271535]
[1727920023338,0.19566016,61070.0,61069.0,0.2251535]
[1727920023557,0.19566016,61070.0,61069.0,0.26424495]
[1727920023771,0.19566016,61070.0,61069.0,0.26524495]
[1727920023993,0.03191416,61070.0,61069.0,0.26524495]
[1727920024252,0.03291416,61070.0,61069.0,0.26424495]
[1727920024476,0.19666016,61070.0,61069.0,0.26424495]
[1727920024693,0.19666016,61070.0,61069.0,0.26524495]
[1727920024912,0.17198461,61070.0,61069.0,0.2261535]
[1727920025406,0.17198461,61070.0,61069.0,0.1334535]
[1727920025619,0.19766056,61070.0,61069.0,0.1006835]
[1727920025847,0.19666056,61070.0,61069.0,0.0180835]
[1727920026074,0.19766056,61070.0,61069.0,0.0180835]
[1727920026296,0.29766056,61070.0,61069.0,0.0180835]
[1727920026519,0.29666056,61070.0,61069.0,0.0170835]
[1727920026773,0.29766056,61070.0,61069.0,0.0180835]
[1727920027226,0.29666056,61070.0,61069.0,0.0170835]
[1727920027660,0.29666056,61070.0,61069.0,0.0180835]
[1727920027920,0.29566056,61070.0,61069.0,0.0180835]
[1727920028139,0.29566056,61070.0,61069.0,0.0170835]
[1727920028831,0.29566056,61070.0,61069.0,0.0180835]
[1727920029719,0.26998461,61070.0,61069.0,0.0170835]
[1727920030159,0.26998461,61070.0,61069.0,0.0180835]
[1727920030619,0.26998461,61070.0,61069.0,0.0170835]
[1727920030837,0.27098461,61070.0,61069.0,0.0170835]
[1727920031056,0.29766227,61070.0,61069.0,0.0170835]
[1727920031270,0.29666227,61070.0,61069.0,0.0170835]
[1727920031483,0.30166227,61070.0,61069.0,0.0170835]
[1727920031722,0.30466227,61070.0,61069.0,0.0170835]
[1727920032403,0.20466227,61070.0,61069.0,0.02629185]
[1727920032852,0.20466227,61070.0,61069.0,0.0170835]
[1727920033140,0.20466227,61070.0,61069.0,0.1933835]
[1727920033141,0.04091627,61070.0,61069.0,0.1933835]
[1727920033365,0.03467766,61070.0,61069.0,0.1933835]
[1727920033593,0.163716,61082.0,61070.0,0.1763]
[1727920033819,0.163716,61082.0,61069.0,0.3445785]
[1727920033820,0.24491195,61076.0,61075.0,0.340033]
[1727920034046,0.24491195,61083.0,61075.0,0.340033]
[1727920034047,0.24491195,61083.0,61080.0,0.240719]
[1727920034288,0.32739,61090.0,61080.0,0.273489]
[1727920034514,0.24491195,61082.0,61080.0,0.077]
[1727920034739,0.327404,61087.0,61080.0,0.077]
[1727920034740,0.165355,61081.0,61080.0,0.077]
[1727920035186,0.165355,61081.0,61080.0,0.078]
[1727920035419,0.166355,61081.0,61080.0,0.079]
[1727920036144,0.166355,61081.0,61080.0,0.078]
[1727920036389,0.166355,61081.0,61080.0,0.1121028]
[1727920036637,0.002638,61081.0,61080.0,0.1121028]
[1727920036913,0.002638,61081.0,61080.0,0.3751218]
[1727920036914,0.02830731,61081.0,61080.0,0.3751218]
[1727920037434,0.57228295,61093.0,61090.0,0.077]
[1727920037435,0.24491195,61093.0,61090.0,0.077]
[1727920037704,0.24491195,61093.0,61091.0,0.0437165]
[1727920037958,0.16369,61091.0,61090.0,0.077]
[1727920038447,0.17382368,61091.0,61090.0,0.077]
[1727920038662,0.17382368,61091.0,61090.0,0.084]
[1727920038879,0.17382368,61091.0,61090.0,0.077]
[1727920039099,0.17382368,61091.0,61090.0,0.1043471]
[1727920039323,0.01113368,61091.0,61090.0,0.1103471]
[1727920039594,0.01113368,61091.0,61090.0,0.1431171]
[1727920040266,0.001,61091.0,61090.0,0.3068091]
[1727920040483,0.01112385,61091.0,61090.0,0.3048091]
[1727920040733,0.001,61091.0,61090.0,0.3048091]
[1727920040964,0.001,61091.0,61090.0,0.3078091]
[1727920041185,0.24491195,61096.0,61093.0,0.163684]
[1727920041405,0.24491195,61096.0,61094.0,0.09595671]
[1727920041623,0.163674,61097.0,61094.0,0.09595671]
[1727920041624,0.01011695,61095.0,61094.0,0.09595671]
[1727920042083,0.163679,61095.0,61094.0,0.09595671]
[1727920042306,0.16369,61091.0,61090.0,0.1043471]
[1727920042527,0.16369,61091.0,61090.0,0.077]
[1727920042981,0.17389153,61091.0,61090.0,0.077]
[1727920043256,0.1995571,61091.0,61090.0,0.077]
[1727920043491,0.17389153,61091.0,61090.0,0.077]
[1727920044632,0.01020153,61091.0,61090.0,0.079]
[1727920044867,0.17389153,61091.0,61090.0,0.079]
[1727920045099,0.16369,61091.0,61090.0,0.10413827]
[1727920045321,0.00851732,61091.0,61090.0,0.10413827]
[1727920045803,0.02566487,61091.0,61090.0,0.10213827]
[1727920046020,0.18935487,61091.0,61090.0,0.10213827]
[1727920046240,0.19787219,61091.0,61090.0,0.10213827]
[1727920047138,0.19787219,61091.0,61090.0,0.08]
[1727920048003,0.19787219,61091.0,61090.0,0.079]
[1727920048452,0.03418219,61091.0,61090.0,0.50637474]
[1727920048667,0.19787219,61091.0,61090.0,0.1703]
[1727920048851,0.18935487,61091.0,61090.0,0.099307]
[1727920049067,0.19787219,61091.0,61090.0,0.099307]
[1727920049295,0.19787219,61091.0,61090.0,0.079]
[1727920050002,0.163717,61081.0,61080.0,0.0349218]
[1727920050442,0.17225855,61081.0,61080.0,0.0349218]
[1727920050663,0.18938533,61081.0,61080.0,0.0349218]
[1727920050907,0.03418316,61081.0,61080.0,0.0676918]
[1727920051141,0.02566833,61081.0,61080.0,0.0726918]
[1727920051386,0.02666833,61081.0,61080.0,0.0726918]
[1727920051606,0.02666833,61081.0,61080.0,0.2364108]
[1727920051823,0.02566833,61081.0,61080.0,0.2314108]
[1727920052046,0.02666833,61081.0,61080.0,0.2384108]
[1727920052710,0.02766833,61081.0,61080.0,0.2464108]
[1727920053410,0.02766833,61081.0,61080.0,0.0826918]
[1727920053634,0.19138533,61081.0,61080.0,0.0826918]
[1727920053853,0.20318823,61081.0,61080.0,0.0756918]
[1727920054072,0.20318823,61081.0,61080.0,0.041589]
[1727920054312,0.04047123,61081.0,61080.0,0.210308]
[1727920054837,0.24491195,61106.0,61080.0,0.220989]
[1727920055098,0.24491195,61106.0,61090.0,0.11337]
[1727920055099,0.327349,61097.0,61090.0,0.11337]
[1727920055341,0.327364,61095.0,61090.0,0.11337]
[1727920055603,0.163684,61094.0,61090.0,0.11337]
[1727920055829,0.163679,61095.0,61090.0,0.277062]
[1727920056056,0.163682,61094.0,61090.0,0.11337]
[1727920056287,0.002638,61091.0,61090.0,0.12137]
[1727920056788,0.002638,61091.0,61090.0,0.285062]
[1727920057272,0.003638,61091.0,61090.0,0.285062]
[1727920057543,0.002638,61091.0,61090.0,0.277062]
[1727920057782,0.002638,61091.0,61090.0,0.287062]
[1727920058034,0.003638,61091.0,61090.0,0.3922488]
[1727920058290,0.0293022,61091.0,61090.0,0.3922488]
[1727920059309,0.003638,61091.0,61090.0,0.3922488]
[1727920061371,0.003638,61091.0,61090.0,0.3249568]
[1727920061852,0.003638,61091.0,61090.0,0.4886488]
[1727920062097,0.0185343,61091.0,61090.0,0.4886488]
[1727920062370,0.0185343,61091.0,61090.0,0.3249568]
[1727920062371,0.003638,61091.0,61090.0,0.3249568]
[1727920062587,0.02930207,61091.0,61090.0,0.4886488]
[1727920063069,0.02930207,61091.0,61090.0,0.3249568]
[1727920063331,0.02930207,61091.0,61090.0,0.4886488]
[1727920063574,0.04419837,61091.0,61090.0,0.4886488]
[1727920064053,0.0185343,61091.0,61090.0,0.3249568]
[1727920064523,0.0185343,61091.0,61090.0,0.4886488]
[1727920067230,0.04419845,61091.0,61090.0,0.4886488]
[1727920067941,0.04419845,61091.0,61090.0,0.3249568]
[1727920068201,0.02930215,61091.0,61090.0,0.3249568]
[1727920068460,0.04423316,61091.0,61090.0,0.3249568]
[1727920069435,0.04423316,61091.0,61090.0,0.4886488]
[1727920071214,0.04423316,61091.0,61090.0,0.3249568]
[1727920071967,0.04423316,61091.0,61090.0,0.2690568]
[1727920072958,0.04423316,61091.0,61090.0,0.05377]
[1727920072959,0.20792316,61091.0,61090.0,0.05377]
[1727920073203,0.20792316,61091.0,61090.0,0.021]
[1727920077699,0.18225901,61091.0,61090.0,0.021]
[1727920078627,0.18225901,61091.0,61090.0,0.05377]
[1727920079125,0.18225901,61091.0,61090.0,0.021]
[1727920079350,0.01856901,61091.0,61090.0,0.315432]
[1727920079575,0.01856901,61091.0,61090.0,0.15174]
[1727920080026,0.003638,61091.0,61090.0,0.15174]
[1727920080494,0.003638,61091.0,61090.0,0.315432]
[1727920080732,0.01855966,61091.0,61090.0,0.412232]
[1727920080959,0.003638,61091.0,61090.0,0.412232]
[1727920083972,0.003638,61091.0,61090.0,0.401232]
[1727920083973,0.002638,61091.0,61090.0,0.401232]
[1727920084195,0.001638,61091.0,61090.0,0.391232]
[1727920084411,0.002638,61091.0,61090.0,0.400232]
[1727920085339,0.003638,61091.0,61090.0,0.408232]
[1727920085783,0.003638,61091.0,61090.0,0.60113239]
[1727920086011,0.003638,61091.0,61090.0,0.62413239]
[1727920086460,0.002638,61091.0,61090.0,0.61513239]
[1727920086699,0.003638,61091.0,61090.0,0.62713239]
[1727920087148,0.002638,61091.0,61090.0,0.61913239]
[1727920087610,0.003638,61091.0,61090.0,0.62713239]
[1727920087843,0.003638,61091.0,61090.0,0.67625774]
[1727920088074,0.003638,61091.0,61090.0,0.70078135]
[1727920088304,0.003638,61091.0,61090.0,0.72538309]
[1727920088527,0.003638,61091.0,61090.0,0.62713239]
[1727920088747,0.002638,61091.0,61090.0,0.61913239]
[1727920088874,0.002638,61091.0,61090.0,0.69276253]
[1727920089138,0.003638,61091.0,61090.0,0.70676253]
[1727920089536,0.003638,61091.0,61090.0,0.63313239]
[1727920089733,0.002638,61091.0,61090.0,0.69676253]
[1727920089949,1.0,61107.0,61095.0,0.001]
[1727920090157,0.24491195,61106.0,61105.0,0.45200474]
[1727920090409,0.24491195,61106.0,61105.0,0.54650474]
[1727920090410,0.25985374,61106.0,61105.0,0.54650474]
[1727920090610,0.01494179,61106.0,61105.0,0.54650474]
[1727920090828,1.0,61107.0,61106.0,0.19642]
[1727920091037,1.01496282,61107.0,61106.0,0.19642]
[1727920092308,1.04061693,61107.0,61106.0,0.19642]
[1727920093476,0.68774593,61107.0,61106.0,0.59290671]
[1727920093682,0.66209182,61107.0,61106.0,0.58190671]
[1727920093896,0.66209182,61107.0,61106.0,0.56990671]
[1727920094098,0.66209182,61107.0,61106.0,0.59790671]
[1727920097139,0.68774583,61107.0,61106.0,0.40472]
[1727920097905,0.68774583,61107.0,61106.0,0.39072]
[1727920098153,0.68774583,61107.0,61106.0,0.37672]
[1727920098410,0.66209182,61107.0,61106.0,0.39072]
[1727920098655,0.66209182,61107.0,61106.0,0.37672]
[1727920098923,0.66209182,61107.0,61106.0,0.37872]
[1727920099453,0.66209182,61107.0,61106.0,0.37672]
[1727920099921,0.66209182,61107.0,61106.0,0.39072]
[1727920101142,0.66209182,61107.0,61106.0,0.40472]
[1727920101369,0.66209182,61107.0,61106.0,0.40672]
[1727920101601,0.65174663,61107.0,61106.0,0.59290671]
[1727920102745,0.6774015,61107.0,61106.0,0.59290671]
[1727920102972,0.43880545,61107.0,61106.0,0.59290671]
[1727920103239,0.43880545,61107.0,61106.0,0.59790671]
[1727920104325,0.41315058,61107.0,61106.0,0.59790671]
[1727920105028,0.41315058,61107.0,61106.0,0.06077]
[1727920105244,0.57679758,61107.0,61106.0,0.06077]
[1727920107357,0.60245506,61107.0,61106.0,0.06077]
[1727920108310,0.57679758,61107.0,61106.0,0.06077]
[1727920109801,0.57679758,61107.0,61106.0,0.04677]
[1727920110029,0.163663,61101.0,61100.0,0.03277]
[1727920110260,0.17873692,61101.0,61100.0,0.03277]
[1727920110483,0.25543692,61101.0,61100.0,0.03277]
[1727920110941,0.163683,61094.0,61090.0,0.000818]
[1727920111169,0.163682,61094.0,61093.0,0.24491195]
[1727920111399,0.163682,61094.0,61091.0,0.02785]
[1727920111848,0.327348,61097.0,61091.0,0.02785]
[1727920111849,0.163679,61096.0,61091.0,0.02785]
[1727920112085,0.16368,61095.0,61092.0,0.03958639]
[1727920113262,0.0150421,61094.0,61092.0,0.03958639]
[1727920113510,0.0150421,61094.0,61093.0,0.021]
[1727920113762,0.0150421,61094.0,61093.0,0.011]
[1727920114028,0.04070504,61094.0,61092.0,0.04858639]
[1727920114266,0.04070504,61094.0,61093.0,0.43659416]
[1727920114267,0.02566294,61094.0,61093.0,0.43659416]
[1727920114507,0.001638,61109.0,61106.0,0.16365]
[1727920114740,0.001638,61109.0,61106.0,0.33603274]
[1727920116470,0.001638,61109.0,61106.0,0.34603274]
[1727920116682,0.001638,61109.0,61106.0,0.35703274]
[1727920116946,0.001638,61109.0,61106.0,0.43403274]
[1727920117197,0.001638,61109.0,61106.0,0.46188274]
[1727920118108,0.001638,61109.0,61106.0,0.63906945]
[1727920118363,0.001638,61109.0,61106.0,0.65755792]
[1727920118844,0.001638,61109.0,61106.0,0.67155792]
[1727920119720,0.001638,61109.0,61106.0,0.66155792]
[1727920120429,0.001638,61109.0,61106.0,0.74755792]
[1727920120650,0.001638,61109.0,61106.0,0.77555792]
[1727920121086,0.001638,61109.0,61106.0,0.81332792]
[1727920121526,0.4254777,61107.0,61106.0,0.81332792]
[1727920121982,0.44045408,61107.0,61106.0,0.81332792]
[1727920122439,0.44045408,61107.0,61106.0,0.25227]
[1727920124578,0.44045408,61107.0,61106.0,0.42900906]
[1727920124854,0.44045408,61107.0,61106.0,0.61283945]
[1727920125042,0.44045408,61107.0,61106.0,0.72932836]
[1727920125814,0.44045408,61107.0,61106.0,0.72932371]
[1727920126012,0.44045408,61107.0,61106.0,0.74780801]
[1727920126216,0.44045408,61107.0,61106.0,0.74780803]
[1727920126476,0.4254777,61107.0,61106.0,0.74780803]
[1727920126899,0.44055568,61107.0,61106.0,0.10710426]
[1727920127115,0.44055568,61107.0,61106.0,0.07925426]
[1727920127558,0.44055568,61107.0,61106.0,0.24290426]
[1727920127759,0.41490174,61107.0,61106.0,0.24290426]
[1727920127962,0.41490174,61107.0,61106.0,0.05125426]
[1727920128200,0.41490174,61107.0,61106.0,0.06525426]
[1727920128450,0.41490174,61107.0,61106.0,0.07825426]
[1727920129769,0.41490174,61107.0,61106.0,0.24190426]
[1727920130427,0.41490174,61107.0,61106.0,0.06425426]
[1727920130646,0.57854874,61107.0,61106.0,0.06225426]
[1727920130857,0.604206,61107.0,61106.0,0.06225426]
[1727920131077,0.604206,61107.0,61106.0,0.06125426]
[1727920131299,0.604206,61107.0,61106.0,0.05125426]
[1727920131583,0.604206,61107.0,61106.0,0.06225426]
[1727920131792,0.604206,61107.0,61106.0,0.08439466]
[1727920132220,0.57854874,61107.0,61106.0,0.08439466]
[1727920135186,0.57854874,61107.0,61106.0,0.08521266]
[1727920135439,0.60420629,61107.0,61106.0,0.08521266]
[1727920135925,0.60420629,61107.0,61106.0,0.0667284]
[1727920138631,0.44055929,61107.0,61106.0,0.2303784]
[1727920139730,0.44055929,61107.0,61106.0,0.2093784]
[1727920139856,0.44055929,61107.0,61106.0,0.2233784]
[1727920140084,0.44055929,61107.0,61106.0,0.2373784]
[1727920140329,0.44055929,61107.0,61106.0,0.42356511]
[1727920140579,0.44055929,61107.0,61106.0,0.72646888]
[1727920140807,0.35567737,61107.0,61106.0,0.60392883]
[1727920141036,0.35567737,61107.0,61106.0,0.63192883]
[1727920141037,0.18634733,61107.0,61106.0,0.63192883]
[1727920141261,0.18634733,61107.0,61106.0,0.61792883]
[1727920141501,0.18634733,61107.0,61106.0,0.617916]
[1727920142471,0.18634733,61107.0,61106.0,0.631916]
[1727920142918,0.18634733,61107.0,61106.0,0.617916]
[1727920143379,0.18634733,61107.0,61106.0,0.74037655]
[1727920143836,0.16742142,61107.0,61106.0,0.75437655]
[1727920144531,0.16742142,61107.0,61106.0,0.74034855]
[1727920144752,0.1425698,61107.0,61106.0,0.71584142]
[1727920144977,0.1425698,61107.0,61106.0,0.631888]
[1727920145208,0.1425698,61107.0,61106.0,0.69680834]
[1727920145424,0.1425698,61107.0,61106.0,0.71584342]
[1727920145652,0.1425698,61107.0,61106.0,0.63190019]
[1727920147070,0.1425698,61107.0,61106.0,0.72982554]
[1727920147288,0.1425698,61107.0,61106.0,0.63190019]
[1727920148208,0.001638,61109.0,61108.0,0.326414]
[1727920148416,0.001638,61131.0,61123.0,0.002]
[1727920148417,0.24491195,61126.0,61123.0,0.002]
[1727920148663,0.24491195,61126.0,61122.0,0.427211]
[1727920148664,0.24491195,61126.0,61125.0,0.51858174]
[1727920148894,0.001638,61131.0,61130.0,0.188585]
[1727920149142,0.001638,61131.0,61130.0,0.6304256]
[1727920149365,0.001638,61131.0,61130.0,0.80405445]
[1727920149595,0.001638,61131.0,61130.0,0.85300009]
[1727920149820,0.001638,61131.0,61130.0,0.80405445]
[1727920150280,0.001638,61131.0,61130.0,0.81805445]
[1727920150987,0.001638,61131.0,61130.0,0.81605445]
[1727920151252,0.001638,61131.0,61130.0,0.73955445]
[1727920151723,0.001638,61131.0,61130.0,0.72555445]
[1727920151963,0.001638,61131.0,61130.0,0.277585]
[1727920152192,0.001638,61131.0,61130.0,0.014]
[1727920153096,0.0272837,61131.0,61130.0,0.014]
[1727920153326,0.0272837,61131.0,61130.0,0.028]
[1727920153327,0.1908667,61131.0,61130.0,0.028]
[1727920153562,0.165221,61131.0,61130.0,0.014]
[1727920153800,0.19086811,61131.0,61130.0,0.028]
[1727920154014,0.19086811,61131.0,61130.0,0.014]
[1727920154243,0.165221,61131.0,61130.0,0.014]
[1727920154454,0.165221,61131.0,61130.0,0.028]
[1727920154888,0.165221,61131.0,61130.0,0.014]
[1727920155125,0.165221,61131.0,61130.0,0.02]
[1727920155352,0.165221,61131.0,61130.0,0.006]
[1727920155803,0.165221,61131.0,61130.0,0.02]
[1727920156257,0.165221,61131.0,61130.0,0.006]
[1727920156481,0.165221,61131.0,61130.0,0.013]
[1727920156707,0.001638,61131.0,61130.0,0.21148267]
[1727920156929,0.001638,61131.0,61130.0,0.21475389]
[1727920157164,0.02728423,61131.0,61130.0,0.21475389]
[1727920157414,0.001638,61131.0,61130.0,0.61685267]
[1727920157650,0.001638,61131.0,61130.0,0.37466938]
[1727920158113,0.001638,61131.0,61130.0,0.36866938]
[1727920158342,0.001638,61131.0,61130.0,0.38266938]
[1727920158580,0.001638,61131.0,61130.0,0.39443938]
[1727920158817,0.001638,61131.0,61130.0,0.23825267]
[1727920159265,0.001638,61131.0,61130.0,0.23125267]
[1727920159710,0.001638,61131.0,61130.0,0.08166767]
[1727920159928,0.165221,61131.0,61130.0,0.08166767]
[1727920160145,0.165221,61131.0,61130.0,0.04677]
[1727920160366,0.18070217,61131.0,61130.0,0.06077]
[1727920160585,0.19086799,61131.0,61130.0,0.06077]
[1727920160808,0.20634916,61131.0,61130.0,0.04677]
[1727920161097,0.20634916,61131.0,61130.0,0.0936974]
[1727920161330,0.20634916,61131.0,61130.0,0.0796974]
[1727920161548,0.20634916,61131.0,61130.0,0.0906974]
[1727920162500,0.04276616,61131.0,61130.0,0.1046974]
[1727920162723,0.20634916,61131.0,61130.0,0.1046974]
[1727920162951,0.19086799,61131.0,61130.0,0.0906974]
[1727920163176,0.20640731,61131.0,61130.0,0.0906974]
[1727920163408,0.20640731,61131.0,61130.0,0.1026974]
[1727920163883,0.20640731,61131.0,61130.0,0.05577]
[1727920163884,0.18076032,61131.0,61130.0,0.05577]
[1727920164340,0.18076032,61131.0,61130.0,0.04477]
[1727920164569,0.163589,61129.0,61126.0,0.03277]
[1727920164786,0.163589,61129.0,61128.0,0.03277]
[1727920166218,0.001638,61131.0,61129.0,0.03277]
[1727920166630,0.001638,61131.0,61128.0,0.17238274]
[1727920166631,0.001638,61131.0,61130.0,0.196355]
[1727920167805,0.001638,61131.0,61130.0,0.1996263]
[1727920168042,0.001638,61131.0,61130.0,0.196355]
[1727920168487,0.001638,61131.0,61130.0,0.209355]
[1727920169369,0.001638,61131.0,61130.0,0.223355]
[1727920169932,0.001638,61131.0,61130.0,0.209355]
[1727920170192,0.001638,61131.0,61130.0,0.210355]
[1727920170432,0.001638,61131.0,61130.0,0.223355]
[1727920170638,0.001638,61131.0,61130.0,0.209355]
[1727920171115,0.18094512,61131.0,61130.0,0.04577]
[1727920171360,0.18094512,61131.0,61120.0,0.17238274]
[1727920171361,0.327175,61130.0,61124.0,0.27768195]
[1727920171588,0.163599,61125.0,61124.0,0.32764112]
[1727920171819,0.17937061,61125.0,61124.0,0.32764112]
[1727920172043,0.17937061,61125.0,61124.0,0.08272917]
[1727920172044,0.01577161,61125.0,61124.0,0.08272917]
[1727920172294,0.163599,61125.0,61124.0,0.03277]
[1727920172553,0.163599,61125.0,61121.0,0.163609]
[1727920172554,0.01577161,61125.0,61121.0,0.163609]
[1727920172802,0.163601,61125.0,61122.0,0.03277]
[1727920173034,0.163601,61125.0,61124.0,0.04677]
[1727920173285,0.17928944,61125.0,61124.0,0.04677]
[1727920173525,0.01568844,61125.0,61124.0,0.03277]
[1727920173771,0.17928744,61125.0,61124.0,0.0682999]
[1727920174043,0.163604,61123.0,61122.0,0.03277]
[1727920174481,0.17929244,61123.0,61122.0,0.03277]
[1727920174701,0.01568844,61123.0,61122.0,0.03277]
[1727920174940,0.163602,61124.0,61122.0,0.03277]
[1727920175181,0.327193,61126.0,61122.0,0.03277]
[1727920175182,0.01577161,61123.0,61122.0,0.03277]
[1727920175403,0.163599,61125.0,61122.0,0.205377]
[1727920175631,0.01568474,61124.0,61122.0,0.205377]
[1727920176072,0.17928874,61124.0,61122.0,0.04177]
[1727920176508,0.01568474,61124.0,61122.0,0.04177]
[1727920176748,0.01568474,61124.0,61123.0,0.03277]
[1727920176969,0.327178,61129.0,61123.0,0.03277]
[1727920176970,0.163597,61126.0,61123.0,0.03277]
[1727920177192,0.01576791,61125.0,61123.0,0.03277]
[1727920177909,0.01576791,61125.0,61123.0,0.359978]
[1727920178139,0.01576791,61125.0,61124.0,0.36875374]
[1727920178378,0.01576791,61125.0,61124.0,0.20515274]
[1727920178856,0.001638,61131.0,61126.0,0.163595]
[1727920179089,0.17931082,61130.0,61126.0,0.163595]
[1727920180271,0.17931082,61130.0,61127.0,0.03277]
[1727920180735,0.20495941,61130.0,61127.0,0.03277]
[1727920181942,0.20495941,61130.0,61127.0,0.03777]
[1727920182621,0.163589,61129.0,61127.0,0.03777]
[1727920182849,0.01573487,61128.0,61127.0,0.03777]
[1727920183090,0.01573487,61128.0,61127.0,0.04377]
[1727920183553,0.17932587,61128.0,61127.0,0.03777]
[1727920183791,0.17932587,61128.0,61127.0,0.03977]
[1727920184008,0.17932587,61128.0,61127.0,0.04677]